bitfinex-derivatives/quotes_ETHF0:USTF0_20251226
["timestamp","ask_amount","ask_price","bid_price","bid_amount"]
[1766764673644,42.97939542,2920.3,2918.6,0.17143]
[1766764674049,1.26792988,2920.3,2918.6,0.17143]
[1766764680952,1.26792988,2920.3,2918.1,0.18073367]
[1766764681153,1.11320374,2920.2,2918.1,0.18073367]
[1766764681353,1.11320374,2920.1,2918.1,0.18073367]
[1766764681540,1.11321374,2920.0,2918.1,0.00927367]
[1766764681744,6.212,2919.9,2918.1,0.00927367]
[1766764681945,1.26792988,2920.3,2918.1,0.00927367]
[1766764682141,7.15395469,2920.2,2918.1,0.00927367]
[1766764682343,0.94195469,2920.1,2918.1,0.18073367]
[1766764682546,6.212,2920.2,2918.1,0.18073367]
[1766764682754,0.94197844,2920.1,2918.1,0.18073367]
[1766764682960,6.212,2920.2,2918.1,0.18073367]
[1766764683249,0.94197208,2920.1,2918.1,0.18073367]
[1766764683444,6.212,2920.2,2918.1,0.18073367]
[1766764683647,6.212,2920.2,2918.2,0.17145]
[1766764683850,6.212,2920.2,2918.4,0.17144]
[1766764684452,1.26792988,2920.3,2918.5,0.17143]
[1766764684653,1.26792988,2920.3,2918.7,0.17142]
[1766764685051,1.26792988,2920.3,2918.6,5.002]
[1766764685250,1.26792988,2920.3,2918.2,4.46343339]
[1766764685452,1.26792988,2920.3,2918.3,5.17345]
[1766764685753,1.26792988,2920.3,2918.4,0.17144]
[1766764692866,7.55492988,2920.3,2918.4,0.17144]
[1766764693264,7.55492988,2920.3,2918.5,0.17143]
[1766764694257,1.31197148,2920.1,2918.5,0.17143]
[1766764695964,0.91128799,2919.4,2918.5,0.17143]
[1766764696465,0.91128799,2919.8,2918.5,0.17143]
[1766764698269,0.91128799,2919.6,2918.5,0.17143]
[1766764699066,0.91128799,2919.2,2918.2,3.04399498]
[1766764699461,0.91128799,2919.2,2918.3,5.002]
[1766764699667,0.91128799,2919.4,2918.3,5.002]
[1766764700066,8.86715578,2920.3,2918.3,5.002]
[1766764701266,8.86715578,2920.3,2918.3,8.04599498]
[1766764704880,8.86715578,2920.3,2918.3,5.002]
[1766764706576,8.86715578,2920.3,2918.3,5.17345]
[1766764706885,8.86715578,2920.3,2918.4,0.17144]
[1766764707284,40.8,2920.2,2918.4,0.17144]
[1766764714283,40.8,2920.2,2918.5,0.17143]
[1766764714488,7.55492988,2920.3,2918.5,0.17143]
[1766764714984,48.35492988,2920.3,2918.5,0.17143]
[1766764715982,49.66715578,2920.3,2918.5,0.17143]
[1766764716182,49.66715578,2920.3,2918.6,5.002]
[1766764716678,49.66715578,2920.3,2918.7,5.002]
[1766764717786,49.66715578,2920.3,2918.5,0.17143]
[1766764717986,49.66715578,2920.3,2918.6,5.002]
[1766764720184,1.3122259,2919.8,2918.1,4.22567798]
[1766764720383,7.7412259,2919.8,2918.2,5.001]
[1766764721985,0.91140713,2919.3,2918.2,5.001]
[1766764722193,0.91140713,2919.1,2918.2,5.001]
[1766764723693,0.91140713,2919.3,2918.2,5.001]
[1766764724090,0.91140713,2919.1,2918.1,0.00927367]
[1766764724297,0.91140713,2919.1,2918.2,5.003]
[1766764725785,0.91140713,2918.9,2918.1,0.00927367]
[1766764725992,0.91140713,2918.9,2918.2,5.005]
[1766764726794,0.91140713,2918.9,2918.1,0.00927367]
[1766764727003,0.91140713,2918.9,2918.1,5.01427367]
[1766764728099,2.14838266,2919.6,2918.1,5.01427367]
[1766764728293,0.91140713,2919.4,2918.1,5.01427367]
[1766764729096,0.91140713,2919.1,2918.1,5.01427367]
[1766764729302,0.91140713,2919.1,2918.2,5.006]
[1766764729703,0.91140713,2919.2,2918.2,5.006]
[1766764731501,1.23697553,2919.6,2918.2,6.08885713]
[1766764731704,1.23697553,2919.6,2918.5,0.91140713]
[1766764733404,1.23697553,2919.6,2918.4,0.17144]
[1766764733903,1.23697553,2919.6,2918.4,1.08284713]
[1766764736107,2.14838266,2919.6,2918.4,0.17144]
[1766764736405,0.91140713,2919.4,2918.4,0.17144]
[1766764736704,0.91140713,2919.4,2918.5,5.005]
[1766764737606,2.14838266,2919.6,2918.5,5.005]
[1766764738503,1.23697553,2919.6,2918.5,5.91640713]
[1766764738805,1.23697553,2919.6,2918.7,1.08282713]
[1766764739601,1.13747553,2919.6,2918.7,1.08282713]
[1766764739796,0.65857553,2919.6,2918.7,1.08282713]
[1766764740608,0.55907553,2919.6,2918.7,1.08282713]
[1766764740804,1.22447809,2920.0,2918.9,0.91140713]
[1766764741005,1.22447809,2920.0,2918.9,1.08281713]
[1766764741902,4.98318664,2920.1,2919.2,0.91140713]
[1766764742108,4.88368664,2920.1,2919.3,5.008]
[1766764744106,0.00297819,2920.4,2919.3,5.008]
[1766764744902,0.91140713,2920.0,2919.2,0.17139]
[1766764745110,0.91140713,2920.2,2919.3,5.009]
[1766764745305,0.00297819,2920.4,2919.4,0.91140713]
[1766764745511,1.24576674,2922.1,2920.3,0.91140713]
[1766764745710,0.17122,2922.3,2920.0,0.17135]
[1766764745711,0.91140713,2921.4,2920.4,5.009]
[1766764745907,40.8,2921.9,2920.4,5.009]
[1766764746511,40.8026848,2921.9,2920.4,5.01326949]
[1766764746716,42.04827371,2921.9,2920.4,5.01326949]
[1766764747313,40.8026848,2921.9,2920.4,5.01326949]
[1766764747507,42.06928022,2921.9,2920.4,5.01326949]
[1766764747707,40.8026848,2921.9,2920.4,5.01326949]
[1766764747915,42.03503956,2921.9,2920.4,5.01326949]
[1766764748423,40.8026848,2921.9,2920.4,5.01326949]
[1766764748610,1.23503956,2921.9,2920.4,5.01326949]
[1766764748816,1.23503956,2921.9,2920.4,0.00426949]
[1766764749017,1.26416428,2921.9,2920.5,5.007]
[1766764749616,0.0026848,2921.9,2920.5,5.007]
[1766764749818,1.26416428,2921.9,2920.5,5.007]
[1766764750712,0.0026848,2921.9,2920.5,5.007]
[1766764751507,1.22859143,2921.9,2920.5,5.007]
[1766764751917,0.0026848,2921.9,2920.5,5.007]
[1766764752617,0.0026848,2921.9,2921.0,0.17129]
[1766764752816,1.26121817,2922.5,2921.2,0.00513813]
[1766764753010,1.26121817,2922.5,2921.3,5.005]
[1766764753213,13.04391522,2922.8,2921.3,5.005]
[1766764753516,6.467,2923.3,2921.3,5.005]
[1766764753517,1.24347147,2924.2,2922.3,0.17121]
[1766764753720,1.24347147,2924.2,2923.0,0.00513813]
[1766764753721,1.24282574,2924.2,2923.0,0.00513813]
[1766764754019,0.00383471,2924.2,2923.0,0.00821898]
[1766764754722,0.00383471,2924.2,2922.7,5.005]
[1766764754915,0.00383471,2924.2,2922.5,5.004]
[1766764755112,0.00383471,2924.2,2921.9,0.17123]
[1766764755317,0.00383471,2924.2,2922.0,2.777]
[1766764755612,0.00513813,2923.4,2922.8,0.00513813]
[1766764756120,0.00383471,2924.2,2922.8,0.00513813]
[1766764756607,0.00383471,2924.2,2922.9,3.949]
[1766764757810,0.00383471,2924.2,2922.8,0.00513813]
[1766764758117,0.00383471,2924.2,2922.8,2.59013813]
[1766764759116,0.00383471,2924.2,2922.8,0.00513813]
[1766764765829,0.00513813,2923.8,2922.2,0.17122]
[1766764766249,0.00513813,2923.8,2922.1,3.394]
[1766764766425,6.552,2923.7,2922.0,0.00415608]
[1766764766628,6.552,2923.7,2922.0,5.00115608]
[1766764766828,6.552,2923.7,2922.6,0.00513813]
[1766764767029,6.552,2923.7,2922.0,5.00115608]
[1766764768032,6.552,2923.7,2922.6,0.00513813]
[1766764769238,6.552,2923.7,2922.0,5.00115608]
[1766764769436,7.783854,2923.7,2922.0,5.00115608]
[1766764770034,40.8,2923.6,2922.0,5.00115608]
[1766764770236,40.8,2923.6,2922.5,0.00513813]
[1766764770436,0.17115,2923.3,2922.0,5.00115608]
[1766764771536,0.17115,2923.3,2922.4,0.00513813]
[1766764771740,0.17115,2923.3,2922.0,5.00115608]
[1766764772841,0.17115,2923.3,2922.4,0.00513813]
[1766764773937,0.17115,2923.3,2922.0,5.00115608]
[1766764774834,0.17115,2923.3,2922.4,0.00342542]
[1766764775834,6.563,2923.5,2922.4,0.00342542]
[1766764776334,6.363,2923.5,2922.4,0.00342542]
[1766764778145,1.402984,2923.7,2922.4,0.00342542]
[1766764778347,0.9318315,2923.6,2922.4,0.00342542]
[1766764778548,1.402984,2923.7,2922.4,0.00342542]
[1766764778746,0.93183229,2923.6,2922.4,0.00342542]
[1766764779045,1.402984,2923.7,2922.4,0.00342542]
[1766764779249,0.93186221,2923.6,2922.4,0.00342542]
[1766764779436,0.93259022,2923.5,2922.0,0.00415608]
[1766764779638,0.17118,2922.9,2920.3,1.48702839]
[1766764779848,0.93259022,2922.8,2920.5,0.17132]
[1766764780043,0.93259022,2922.8,2920.6,4.43471614]
[1766764780239,0.93259022,2922.8,2920.6,0.44477168]
[1766764780446,0.00513813,2922.0,2920.8,0.1713]
[1766764780749,0.00934006,2922.0,2920.9,4.42527515]
[1766764783250,0.00934006,2922.0,2920.8,0.17371874]
[1766764784446,1.23208497,2923.1,2920.9,4.49659253]
[1766764784644,0.9350611,2923.0,2920.9,4.49659253]
[1766764784847,1.21568294,2923.6,2920.9,4.49659253]
[1766764785046,0.93500719,2923.5,2920.9,4.49659253]
[1766764785247,0.93500719,2923.4,2920.9,4.49659253]
[1766764785454,0.00513813,2922.4,2921.9,0.00513813]
[1766764785641,1.41809857,2923.4,2921.9,0.00513813]
[1766764785846,0.93498055,2923.3,2921.9,0.00513813]
[1766764786044,0.93498055,2923.2,2921.9,0.00513813]
[1766764786246,1.24694857,2923.4,2921.9,0.00513813]
[1766764786447,0.93502376,2923.3,2921.9,0.00513813]
[1766764786744,0.00513813,2922.9,2921.9,0.00513813]
[1766764788452,0.00513813,2922.9,2921.9,0.17637813]
[1766764788653,0.0042185,2923.4,2921.9,0.00513813]
[1766764788853,0.0042185,2923.4,2922.1,0.17122]
[1766764789253,0.0042185,2923.4,2922.3,0.17121]
[1766764789454,1.85e-05,2923.4,2922.3,0.17121]
[1766764789654,0.00513813,2923.1,2922.3,0.17121]
[1766764792861,0.00513813,2923.1,2922.2,5.005]
[1766764793563,0.00513813,2923.1,2921.9,0.00513813]
[1766764796466,0.00513813,2923.1,2921.2,0.17127]
[1766764796664,0.00513813,2923.1,2921.3,1.271]
[1766764797667,0.17630813,2923.1,2921.9,0.00513813]
[1766764797866,1.85e-05,2923.4,2921.9,0.00513813]
[1766764798172,1.85e-05,2923.4,2922.0,4.53993585]
[1766764798367,1.85e-05,2923.4,2922.1,0.17122]
[1766764798566,1.85e-05,2923.4,2922.2,0.873]
[1766764798969,0.00513813,2923.1,2922.2,0.873]
[1766764799268,1.85e-05,2923.4,2922.2,0.873]
[1766764799573,1.85e-05,2923.4,2922.3,0.17121]
[1766764800274,1.85e-05,2923.4,2922.4,4.49011902]
[1766764800476,40.8,2924.6,2922.4,4.49011902]
[1766764801373,40.8,2924.6,2922.3,4.52505114]
[1766764801573,40.8,2924.6,2922.5,0.1712]
[1766764801793,40.80292577,2924.6,2922.5,0.1712]
[1766764803577,0.00513813,2923.8,2922.6,1.682]
[1766764805174,0.00513813,2923.8,2922.7,4.999]
[1766764805773,40.80292577,2924.6,2922.7,4.999]
[1766764805975,0.00292577,2924.6,2922.7,4.999]
[1766764806169,0.00292577,2924.6,2922.9,0.17118]
[1766764806379,0.00292577,2924.6,2922.9,0.17503144]
[1766764806673,0.00292577,2924.6,2923.0,4.51602532]
[1766764806873,0.00292577,2924.6,2923.5,0.00513813]
[1766764807880,0.00292577,2924.6,2923.5,5.00413813]
[1766764808677,0.00292577,2924.6,2923.5,0.00513813]
[1766764808877,0.00292577,2924.6,2923.5,5.00413813]
[1766764809278,0.00292577,2924.6,2923.5,0.00513813]
[1766764811674,0.00292577,2924.6,2923.6,0.17114]
[1766764811884,40.8,2925.7,2923.6,0.17114]
[1766764812079,0.17099,2926.2,2923.6,4.34792911]
[1766764812374,0.17099,2926.2,2924.0,0.17111]
[1766764812575,40.8,2926.1,2924.0,0.17111]
[1766764812976,40.80355104,2926.1,2924.0,0.17111]
[1766764813171,1.30717545,2925.8,2924.0,0.17111]
[1766764813882,1.30717545,2925.8,2923.8,3.303]
[1766764814382,1.47818545,2925.8,2923.8,3.303]
[1766764816889,1.47818545,2925.8,2923.8,3.47412]
[1766764817088,40.80355104,2926.1,2924.0,0.17111]
[1766764817485,40.80355104,2926.1,2924.1,0.17111]
[1766764817990,40.80355104,2926.1,2924.2,0.1711]
[1766764818289,1.30717545,2925.8,2924.2,0.1711]
[1766764819584,1.30717545,2925.8,2923.9,4.4692088]
[1766764821184,0.17454104,2926.1,2923.9,4.4692088]
[1766764822798,1.30717545,2925.8,2923.9,4.4692088]
[1766764825592,3.43,2929.2,2924.5,1.30717545]
[1766764825790,1.30717545,2927.0,2925.6,0.00512882]
[1766764825989,1.30717545,2926.5,2925.2,4.992]
[1766764826596,1.31008793,2926.5,2925.2,4.99555607]
[1766764826900,0.00509777,2926.1,2925.6,0.00512882]
[1766764827092,0.00291248,2926.5,2925.6,0.00512882]
[1766764827997,0.00291248,2926.5,2925.6,4.99612882]
[1766764828603,1.31008793,2926.5,2925.2,0.00355607]
[1766764829599,1.31008793,2926.5,2925.6,0.00512882]
[1766764829799,1.30717545,2926.0,2924.5,0.17108]
[1766764830704,1.30717545,2926.0,2925.0,0.00512882]
[1766764831706,0.00512882,2926.1,2925.0,0.00512882]
[1766764832408,1.26163546,2926.3,2925.1,4.65730668]
[1766764832608,0.96943546,2926.3,2925.1,4.65730668]
[1766764833102,0.00291248,2926.5,2926.2,0.0008]
[1766764833306,0.00512882,2926.6,2925.5,4.988]
[1766764833609,1.56751213,2927.3,2925.6,4.38513581]
[1766764834200,0.26399745,2927.3,2925.6,4.38513581]
[1766764835301,1.30717545,2927.1,2925.6,4.38513581]
[1766764835506,1.30717545,2927.1,2925.1,0.17105]
[1766764835802,1.30717545,2927.1,2925.2,4.989]
[1766764836007,1.30717545,2926.6,2925.2,4.989]
[1766764836305,1.30717545,2926.0,2923.7,0.17113]
[1766764836503,1.30717545,2926.0,2924.3,4.989]
[1766764837511,0.00512882,2925.5,2925.0,0.00512882]
[1766764837808,0.00512882,2925.5,2924.3,4.989]
[1766764838805,0.00512882,2925.5,2924.7,0.00512882]
[1766764839611,1.30717545,2927.0,2924.8,4.53093615]
[1766764840511,0.00512882,2926.2,2924.8,4.53093615]
[1766764841411,0.00512882,2926.2,2924.8,4.70199615]
[1766764842020,1.30717545,2927.0,2924.9,0.17106]
[1766764842513,1.30717545,2927.0,2925.0,4.43297226]
[1766764844415,1.30717545,2926.5,2925.0,4.43297226]
[1766764845022,1.30717545,2926.5,2924.7,0.00512882]
[1766764846115,1.30717545,2925.5,2924.3,4.989]
[1766764846811,1.30717545,2925.5,2923.7,0.17113]
[1766764847006,1.30717545,2925.5,2923.8,4.986]
[1766764847209,1.30717545,2926.3,2924.4,0.00512882]
[1766764848109,1.30717545,2926.3,2924.5,4.53743246]
[1766764848915,40.8,2926.5,2923.8,4.98883263]
[1766764848916,1.30717545,2925.2,2923.8,0.00283263]
[1766764849106,0.0040858,2925.2,2923.8,4.99083263]
[1766764849312,0.17093,2927.2,2924.7,0.17107]
[1766764849514,1.30717545,2926.9,2924.8,4.988]
[1766764849817,1.30717545,2926.9,2925.0,0.17105]
[1766764850015,0.00512882,2926.2,2925.7,0.00512882]
[1766764850219,0.00824976,2926.2,2925.7,0.00512882]
[1766764851818,4.976e-05,2926.2,2925.7,0.00512882]
[1766764853015,4.976e-05,2926.2,2925.1,0.17104]
[1766764853919,0.00512882,2925.9,2925.4,0.00512882]
[1766764854121,4.976e-05,2926.2,2925.4,0.00512882]
[1766764858017,0.00510001,2926.1,2924.8,4.986]
[1766764858414,0.00510001,2926.1,2924.5,0.17108]
[1766764858823,1.30717545,2925.9,2924.5,0.17108]
[1766764859425,0.00510001,2926.1,2924.5,0.17108]
[1766764860023,0.00510001,2926.1,2925.0,0.00512882]
[1766764867630,4.976e-05,2926.2,2925.0,0.00512882]
[1766764867836,4.976e-05,2926.2,2925.2,0.17104]
[1766764868336,4.976e-05,2926.2,2925.3,4.50049671]
[1766764868747,0.00512882,2926.0,2925.3,4.50049671]
[1766764869138,0.26033668,2927.3,2925.3,4.50049671]
[1766764869637,0.26033668,2927.3,2925.1,4.34923748]
[1766764869837,0.26033668,2927.3,2925.0,0.00512882]
[1766764870044,0.26033668,2927.3,2925.1,4.54113533]
[1766764870239,0.2638969,2927.3,2925.1,4.54113533]
[1766764871544,0.2638969,2927.3,2925.9,0.171]
[1766764871747,0.2638969,2927.3,2926.0,4.981]
[1766764872045,0.2638969,2927.3,2926.0,9.50195351]
[1766764873345,0.2638969,2927.3,2926.0,9.67294351]
[1766764873547,0.0594734,2928.1,2926.0,9.67294351]
[1766764873843,0.0594734,2928.1,2926.6,0.00512882]
[1766764874643,0.25802395,2927.8,2926.6,0.00512882]
[1766764878946,0.25802395,2927.8,2926.7,4.37618261]
[1766764879752,0.25802395,2927.8,2926.7,4.54713261]
[1766764880253,0.25802395,2927.8,2926.7,0.17095]
[1766764882855,0.25802395,2927.8,2926.6,4.98312882]
[1766764884554,0.25802395,2927.8,2926.6,0.00512882]
[1766764888357,0.26270887,2928.5,2926.7,4.45258365]
[1766764888749,0.26270887,2928.5,2926.6,0.00512882]
[1766764889357,0.26568188,2928.5,2926.6,0.00512882]
[1766764889559,0.26568188,2928.5,2927.0,0.17094]
[1766764890254,0.26568188,2928.5,2926.6,0.00512882]
[1766764890455,0.26568188,2928.5,2926.6,0.71312882]
[1766764890655,0.26568188,2928.5,2926.7,0.17095]
[1766764890856,0.26568188,2928.5,2926.7,4.57576778]
[1766764891054,0.26568188,2928.5,2926.7,0.17095]
[1766764891858,0.26568188,2928.5,2926.6,0.00512882]
[1766764894265,1.47901351,2928.2,2925.9,0.00426757]
[1766764894466,40.8,2928.1,2925.9,0.17526757]
[1766764894765,40.8,2928.1,2926.0,4.4149371]
[1766764895160,40.8,2928.1,2925.9,0.17526757]
[1766764895360,0.00512882,2927.3,2925.9,0.17526757]
[1766764896465,0.00512882,2927.3,2926.3,0.00512882]
[1766764897364,0.00512882,2927.3,2925.9,0.00426757]
[1766764898265,0.00512882,2927.3,2924.9,0.26763692]
[1766764898456,0.00512882,2927.3,2924.8,0.17106]
[1766764898655,0.00512882,2927.3,2925.1,0.17105]
[1766764898861,0.00512882,2927.3,2925.2,0.17104]
[1766764899060,0.00512882,2927.3,2925.2,4.65245974]
[1766764899261,0.00512882,2927.3,2925.2,0.17401309]
[1766764899462,0.00512882,2927.3,2926.0,0.00512882]
[1766764899662,0.00512882,2927.3,2925.2,0.00297309]
[1766764899859,40.8,2927.2,2925.2,0.00297309]
[1766764900369,40.97093,2927.2,2925.2,0.00297309]
[1766764900570,40.97093,2927.2,2925.9,0.00512882]
[1766764900869,40.97093,2927.2,2925.2,0.00297309]
[1766764901769,40.97093,2927.2,2925.9,0.00339038]
[1766764902069,0.17093,2927.2,2925.9,0.00339038]
[1766764903874,0.00512882,2927.3,2925.9,0.00339038]
[1766764904767,0.00512882,2927.3,2926.0,4.40916603]
[1766764905573,0.26568188,2928.5,2926.0,4.40916603]
[1766764905767,0.26568188,2928.5,2926.2,0.17098]
[1766764906167,0.26568188,2928.5,2926.3,4.38490297]
[1766764906373,0.26568188,2928.5,2926.3,4.55588297]
[1766764906674,0.00512882,2927.7,2926.3,0.17098]
[1766764906873,0.00512882,2927.7,2926.4,4.37304819]
[1766764907567,0.00512882,2927.7,2926.4,4.54401819]
[1766764907769,2.882e-05,2927.7,2926.5,0.17097]
[1766764907972,2.882e-05,2927.7,2926.6,0.17096]
[1766764908271,2.882e-05,2927.7,2926.6,4.52477995]
[1766764908471,2.882e-05,2927.7,2926.6,0.17096]
[1766764908672,2.882e-05,2927.7,2926.7,4.35381995]
[1766764909373,2.882e-05,2927.7,2926.6,0.17096]
[1766764909563,2.882e-05,2927.7,2926.7,0.17095]
[1766764909768,2.882e-05,2927.7,2926.8,0.17095]
[1766764909968,2.882e-05,2927.7,2926.8,4.62105879]
[1766764910273,2.882e-05,2927.7,2926.9,4.969]
[1766764910474,2.882e-05,2927.7,2926.9,9.41910879]
[1766764910970,0.26568188,2928.5,2927.0,0.17094]
[1766764911171,0.26568188,2928.5,2927.2,0.17092]
[1766764911570,0.04278188,2928.5,2927.3,4.43171734]
[1766764911771,0.2579645,2929.0,2927.3,0.00381231]
[1766764912275,0.00512882,2928.4,2927.9,0.00512882]
[1766764912677,0.00858836,2928.4,2927.9,0.00512882]
[1766764913772,0.2579645,2929.0,2927.9,0.00512882]
[1766764914771,0.00512882,2928.7,2927.9,0.00512882]
[1766764918773,0.00512882,2928.7,2927.3,0.00381231]
[1766764919782,0.00512882,2928.7,2927.7,0.00512882]
[1766764921282,0.00512882,2928.7,2927.3,0.00381231]
[1766764922372,0.00512882,2928.7,2927.7,0.00512882]
[1766764922580,0.00512882,2928.7,2927.3,0.00381231]
[1766764923573,0.00512882,2928.7,2927.7,0.00339038]
[1766764924685,0.00512882,2928.7,2927.3,0.00381231]
[1766764925182,0.00512882,2928.7,2926.5,1.008]
[1766764925488,0.00512882,2928.7,2926.5,1.17897]
[1766764925690,0.00512882,2928.7,2926.6,4.55175423]
[1766764925984,0.00512882,2928.7,2926.6,4.5545114]
[1766764926286,0.00512882,2928.7,2926.7,0.17095]
[1766764926487,0.00512882,2928.7,2926.8,0.17095]
[1766764926789,0.00512882,2928.7,2926.8,4.63440781]
[1766764928588,0.17596882,2928.7,2926.8,0.17095]
[1766764928786,0.17075,2930.2,2926.9,4.52380388]
[1766764929087,0.25087957,2931.1,2927.5,4.90901351]
[1766764929286,0.0594207,2931.0,2927.5,4.90901351]
[1766764929591,0.17071,2930.9,2928.3,0.17086]
[1766764929783,0.17071,2930.9,2929.3,0.00509935]
[1766764929784,0.1749759,2930.9,2929.3,0.00509935]
[1766764929983,0.00511997,2929.9,2929.3,0.00804352]
[1766764930890,0.00511997,2929.9,2928.3,0.17086]
[1766764931296,0.00511997,2929.9,2928.0,2.60126646]
[1766764931588,0.00511997,2929.9,2928.1,4.41872312]
[1766764932085,0.00511997,2929.9,2928.1,0.00376585]
[1766764932287,0.00511997,2929.9,2928.2,4.47481927]
[1766764932483,0.00511997,2929.9,2928.1,0.17463585]
[1766764932685,0.00511997,2929.9,2928.3,4.47481927]
[1766764932890,0.00511997,2929.9,2928.1,0.00376585]
[1766764932891,6.598,2929.8,2928.1,0.00376585]
[1766764933691,6.597,2929.7,2928.1,0.00376585]
[1766764934089,0.00511997,2929.9,2928.1,0.00376585]
[1766764934289,8.0757677,2929.9,2928.1,0.00376585]
[1766764934683,1.30387773,2929.4,2927.4,0.17091]
[1766764935287,42.10387773,2929.4,2927.4,0.17091]
[1766764935487,42.10387773,2929.4,2927.5,4.35366124]
[1766764935789,42.10387773,2929.4,2927.5,0.00362015]
[1766764935994,1.30387773,2928.9,2927.5,0.00362015]
[1766764936696,1.30387773,2928.9,2926.9,4.961]
[1766764936895,0.00511997,2928.2,2926.9,4.961]
[1766764937797,0.0078865,2928.2,2927.0,4.54283503]
[1766764938897,1.30387773,2929.4,2927.3,0.17603996]
[1766764939091,1.30387773,2930.0,2927.4,0.17091]
[1766764939286,41.803,2929.9,2927.4,4.70953339]
[1766764939888,0.00511997,2928.9,2927.4,4.70953339]
[1766764941690,0.00511997,2928.9,2927.4,0.17091]
[1766764942094,0.00511997,2928.9,2927.5,4.5243146]
[1766764942400,1.997e-05,2928.9,2927.6,0.1709]
[1766764942699,1.997e-05,2928.9,2927.6,4.5243146]
[1766764942901,1.997e-05,2928.9,2927.6,0.1709]
[1766764947400,1.997e-05,2928.9,2927.3,0.00511996]
[1766764948700,1.997e-05,2928.9,2927.3,0.17603996]
[1766764949002,1.997e-05,2928.9,2927.4,4.6541797]
[1766764950503,1.997e-05,2928.9,2927.4,0.17091]
[1766764950700,1.997e-05,2928.9,2927.7,0.1709]
[1766764955110,1.997e-05,2928.9,2927.8,0.17089]
[1766764955311,1.997e-05,2928.9,2927.9,0.17089]
[1766764955906,1.997e-05,2928.9,2927.4,4.49662864]
[1766764956106,1.997e-05,2928.9,2928.0,0.17088]
[1766764956712,1.997e-05,2928.9,2927.4,0.17091]
[1766764958820,1.997e-05,2928.9,2927.3,0.00511996]
[1766764959320,1.30387773,2927.9,2926.0,0.29325847]
[1766764960319,0.00511997,2927.2,2926.0,0.12657121]
[1766764960522,0.00764902,2927.2,2926.0,0.12657121]
[1766764962323,0.00764902,2927.2,2926.0,0.00431274]
[1766764966024,1.30387773,2926.9,2925.1,4.953]
[1766764966915,1.30387773,2926.4,2924.1,1.68714635]
[1766764967119,0.00511997,2925.7,2924.4,1.51977291]
[1766764967312,1.30387773,2926.5,2924.5,4.48947227]
[1766764967917,0.17097,2926.4,2924.4,0.00388989]
[1766764968222,0.00511997,2925.7,2925.1,0.00511996]
[1766764968926,1.30387773,2927.0,2925.1,0.00511996]
[1766764969126,1.30387773,2926.5,2925.1,0.00511996]
[1766764969927,0.00511997,2926.1,2925.1,0.00511996]
[1766764970428,0.00511997,2926.1,2924.4,0.00388989]
[1766764970629,1.30387773,2926.0,2924.4,0.00388989]
[1766764970828,1.30387773,2925.0,2923.0,0.17117]
[1766764971331,0.00512908,2924.3,2923.7,0.00512908]
[1766764971632,0.17103,2925.4,2923.7,0.00512908]
[1766764971833,0.17103,2925.4,2923.7,0.0080213]
[1766764971834,0.00254921,2925.4,2923.7,0.0080213]
[1766764972626,0.00254921,2925.4,2923.8,4.50353771]
[1766764973230,0.00254921,2925.4,2923.9,4.962]
[1766764973631,0.00512908,2924.9,2924.0,4.49223987]
[1766764973837,0.00512908,2924.9,2923.9,4.962]
[1766764975825,0.00254921,2925.4,2924.0,4.39039265]
[1766764976434,0.00254921,2925.4,2924.0,4.56150265]
[1766764976629,0.00254921,2925.4,2924.1,0.17111]
[1766764976833,40.8,2926.2,2924.2,0.1711]
[1766764977025,1.30387773,2926.8,2924.2,4.65472766]
[1766764977228,1.47482773,2926.8,2924.2,0.1711]
[1766764977427,40.8,2926.7,2924.3,4.48362766]
[1766764977824,0.00512908,2925.8,2925.2,0.00512908]
[1766764980732,0.00373151,2926.7,2925.2,0.00512908]
[1766764980937,0.00373151,2926.7,2925.3,4.4920861]
[1766764981334,0.00373151,2926.7,2925.2,0.00512908]
[1766764981737,0.00339815,2926.2,2925.2,0.00512908]
[1766764982538,0.00373151,2926.7,2925.2,0.00512908]
[1766764983136,0.00373151,2926.7,2925.3,4.5032436]
[1766764983840,0.00373151,2926.7,2925.3,4.6742836]
[1766764984147,0.00373151,2926.7,2925.6,0.17102]
[1766764984334,1.30387773,2928.0,2925.7,0.17101]
[1766764984643,40.8,2927.9,2925.7,0.17101]
[1766764985241,40.8,2927.9,2925.9,0.171]
[1766764985439,40.80317142,2927.9,2925.9,0.17542063]
[1766764985638,40.80317142,2927.9,2926.0,0.171]
[1766764985841,40.80317142,2927.9,2926.0,4.6569226]
[1766764986138,40.80317142,2927.9,2926.1,4.961]
[1766764986436,0.00317142,2927.9,2926.7,0.00512908]
[1766764993646,0.00317142,2927.9,2926.1,4.961]
[1766764994137,6.62417142,2927.9,2926.1,4.961]
[1766764994342,0.00317142,2927.9,2926.1,4.961]
[1766764994744,0.00512908,2927.3,2926.7,0.00512908]
[1766764997447,2.908e-05,2927.3,2926.7,0.00512908]
[1766764997645,0.00317142,2927.9,2926.7,0.00512908]
[1766765000750,0.17083,2928.9,2926.9,0.17094]
[1766765001149,0.17083,2928.9,2927.0,4.34069507]
[1766765001350,40.97083,2928.9,2927.0,4.34069507]
[1766765001550,40.8,2928.9,2927.0,4.34069507]
[1766765001850,0.0040246,2928.9,2927.1,0.17093]
[1766765002053,0.0040246,2928.9,2927.2,4.954]
[1766765002448,0.0040246,2928.9,2927.2,5.12493]
[1766765002650,0.0040246,2928.9,2927.3,4.37176242]
[1766765002853,0.0040246,2928.9,2927.2,5.12493]
[1766765006452,0.0040246,2928.9,2926.7,0.00512908]
[1766765006659,0.1748546,2928.9,2926.7,0.00512908]
[1766765006857,0.1748546,2928.9,2926.7,0.17607908]
[1766765007058,6.7838546,2928.9,2926.7,0.17607908]
[1766765007456,0.1748546,2928.9,2926.7,0.17607908]
[1766765007751,40.8,2928.8,2926.7,0.00512908]
[1766765007957,0.17085,2928.5,2926.7,0.00512908]
[1766765009157,0.17086,2928.4,2926.7,0.00512908]
[1766765010358,0.17086,2928.3,2926.7,0.00512908]
[1766765010659,40.8,2928.8,2926.7,0.00512908]
[1766765010660,0.17087,2928.2,2926.7,0.00512908]
[1766765011960,0.00512908,2927.7,2926.1,0.17099]
[1766765012861,0.00512908,2927.7,2926.0,0.468]
[1766765013061,0.00512908,2927.7,2926.6,2.908e-05]
[1766765013563,40.8,2927.6,2926.0,0.468]
[1766765013762,0.17093,2927.2,2925.9,0.00442063]
[1766765014465,0.17093,2927.2,2926.3,0.00512908]
[1766765015258,0.17093,2927.2,2925.9,0.00442063]
[1766765015760,40.8,2927.6,2925.9,0.00442063]
[1766765015969,0.17094,2927.0,2925.1,4.197]
[1766765016265,0.17094,2927.0,2925.8,0.00512908]